Cogmind - Beta 11 @@@ ROGUE MODE // 2022.04.03 @ 23:54:10 Player: Jezoensis Result: Destroyed by L-31 Rogue with Katana Performance ------------- Evolutions (0) 0 Regions Visited (4) 800 Robots Destroyed (25) 125 Value Destroyed (429) 429 Prototype IDs (23) 460 Alien Tech Used (0) 0 Bonus (292) 292 TOTAL SCORE: 2106 Bonus ------- Follower Combat Kills 25 Aligned with FarCom 300 Friendly Fire -33 Cogmind --------- Core Integrity 0/250 Matter 270/300 Energy 90/125 System Corruption 0% Temperature Cool (72) Movement Treading (160) Location -9/Mines Parts ------- > --- POWER (1) -------- Light Ion Engine > --- PROPULSION (2) --- Light Treads > --- UTILITY (2) ------ Improved Heat Sink Medium Storage Unit > --- WEAPON (2) ------- Beam Rifle Beam Rifle > --- INVENTORY (10) --- Large Storage Unit High-capacity Storage Unit High-capacity Matter Pod (200) High-capacity Matter Pod (200) Improved Terrain Scanner Supersonic Drone Bay (1/1) Light Cannon Rocket Launcher Mining Laser Peak State ------------ > --- POWER ------------ Light Ion Engine > --- PROPULSION ------- Light Treads > --- UTILITY ---------- Medium Storage Unit Improved Terrain Scanner > --- WEAPON ----------- Beam Rifle Beam Rifle > --- INVENTORY -------- Heat Sink Improved Heat Sink Large Storage Unit High-capacity Storage Unit High-capacity Matter Pod High-capacity Matter Pod Supersonic Drone Bay Light Cannon Rocket Launcher Mining Laser [Rating: 12] Favorites ----------- Power Light Ion Engine Engine Light Ion Engine Propulsion Light Treads Treads Light Treads Utility Small Storage Unit Device Structural Scanner Storage Small Storage Unit Weapon Beam Rifle Energy Gun Beam Rifle Ballistic Gun Assault Rifle Ballistic Cannon Light Cannon Launcher Rocket Launcher Special Weapon Mining Laser Build | -11 -10 -10 -10 -9 ------- Run | Scr Mat Min Exi Min Slots Evolved . | . . . . . Power . | . . . . . Propulsion . | . . . . . Utility . | . . . . . Weapon . | . . . . . Parts Attached 37 | 6 22 2 3 4 Power 3 | 1 1 . . 1 Engine 3 | 1 1 . . 1 Core . | . . . . . Reactor . | . . . . . Propulsion 3 | 2 . 1 . . Treads 3 | 2 . 1 . . Leg . | . . . . . Wheel . | . . . . . Hover . | . . . . . Flight . | . . . . . Utility 14 | 1 10 . 1 2 Device 12 | . 9 . 1 2 Storage 2 | 1 1 . . . Processor . | . . . . . Hackware . | . . . . . Protection . | . . . . . Artifact . | . . . . . Weapon 17 | 2 11 1 2 1 Energy Gun 10 | 1 7 . 1 1 Energy Cannon . | . . . . . Ballistic Gun 1 | 1 . . . . Ballistic Cannon 1 | . . . 1 . Launcher 1 | . . 1 . . Special Weapon 4 | . 4 . . . Impact Weapon . | . . . . . Slashing Weapon . | . . . . . Piercing Weapon . | . . . . . Special Melee Weapon . | . . . . . Unidentified Prototypes . | . . . . . Parts Lost 5 | . . 5 . . Power 1 | . . 1 . . Propulsion 2 | . . 2 . . Utility 1 | . . 1 . . Weapon 1 | . . 1 . . Highest Loss Streak 5 | . . 5 . . To Critical Strikes . | . . . . . Average Slot Usage (%) 89 | . 98 100 70 81 Engine 10 | . 14 14 . 10 Treads 22 | . 28 28 14 14 Device 13 | . 13 14 14 13 Storage 14 | . 14 14 14 14 Energy Gun 15 | . 13 9 13 27 Ballistic Gun 8 | . 14 14 . . Ballistic Cannon 3 | . . . 13 1 Naked Turns . | . . . . . Heaviest Build 22 | 12 21 22 17 20 Greatest Support 40 | 40 40 40 20 20 Greatest Overweight (x) . | . . . . . Average Overweight (x) . | . . . . . Largest Inventory Capacity 10 | 8 10 10 10 10 Average Capacity 8 | 7 8 10 10 10 Most Carried 10 | 5 9 9 8 10 Average Carried 7 | 2 7 8 7 8 Final Capacity 10 | 8 10 10 10 10 Final Carried 9 | 4 9 9 8 9 Class Distribution -------------------- 94% | Mutant 5% | Skirmisher Dominant Class ---------------- Mutant | -10/Materials Mutant | -10/Mines Mutant | -10/Exiles Mutant | -9/Mines Resources | -11 -10 -10 -10 -9 ----------- Run | Scr Mat Min Exi Min Matter Collected 979 | 232 383 . 330 34 Remotely . | . . . . . Salvage Created 805 | 52 559 80 . 114 Parts 50 | 6 32 5 . 7 Haulers Intercepted 2 | . 2 . . . Recyclers Shooed 4 | 1 3 . . . Parts Field Recycled . | . . . . . Retrieved Matter . | . . . . . Parts Self-Destructed . | . . . . . Prevented . | . . . . . Kills | -11 -10 -10 -10 -9 ------- Run | Scr Mat Min Exi Min Combat Hostiles Destroyed 17 | . 9 6 . 2 Guns 9 | . 9 . . . Cannons 2 | . . . . 2 AOE 6 | . . 6 . . Classes Destroyed 11 | 1 7 2 . 1 Worker 1 | . 1 . . . Builder 3 | . 2 1 . . Tunneler 4 | 2 . . . 2 Hauler 2 | . 2 . . . Recycler 1 | . 1 . . . Mechanic 1 | . . 1 . . Watcher 2 | . 2 . . . Swarmer 3 | . 3 . . . Grunt 7 | . 6 . . 1 Brawler 1 | . . . . 1 Assembled 6 | . . 6 . . Best Kill Streak 8 | 1 4 8 . 2 Combat Bots Only 6 | . 4 6 . 2 Max Kills in Single Turn 3 | 1 2 3 . 1 Gunslinging 1 | . 1 . . . Exploded 2 | . . 2 . . Melee . | . . . . . Uniques/NPCs Destroyed . | . . . . . Combat | -11 -10 -10 -10 -9 -------- Run | Scr Mat Min Exi Min Damage Taken 1045 | . 390 444 . 211 Core 265 | . 68 106 . 91 Absorbed by Shields . | . . . . . Core Remaining (%) 100 | 100 . . . . Volleys Fired 77 | 5 51 5 . 16 Largest 2 | 2 2 1 . 2 Hottest 112 | 70 100 33 . 112 Shots Fired 143 | 10 96 5 . 32 Gun 126 | 10 90 . . 26 Cannon 6 | . . . . 6 Launcher 5 | . . 5 . . Special 6 | . 6 . . . Kinetic 56 | 5 45 . . 6 Thermal 82 | 5 51 . . 26 Explosive 5 | . . 5 . . Electromagnetic . | . . . . . Robot Hit Streak 15 | 2 13 2 . 15 Robot Miss Streak 4 | 2 4 3 . 1 Penetration Max . | . . . . . Secondary Targets 1 | . 1 . . . Max Gunslinging Chain 1 | . 1 . . . Shots Hit Robots 93 | 4 61 2 . 26 Core Hits 56 | 3 32 14 . 7 Critical Kills . | . . . . . Critical Parts Destroyed 1 | . 1 . . . Critical Strikes 9 | . 6 . . 3 Burn 8 | . 5 . . 3 Destroy 1 | . 1 . . . Melee Attacks . | . . . . . Impact . | . . . . . Slashing . | . . . . . Piercing . | . . . . . Sneak Attacks . | . . . . . Combat Hostiles . | . . . . . Follow-up Attacks . | . . . . . Damage Inflicted 1690 | 72 823 393 . 402 Guns 1183 | 72 812 . . 299 Cannons 103 | . . . . 103 Explosions 393 | . . 393 . . Melee . | . . . . . Ramming 11 | . 11 . . . Kinetic 481 | 35 343 . . 103 Thermal 805 | 37 469 . . 299 Explosive 393 | . . 393 . . Electromagnetic . | . . . . . Impact . | . . . . . Slashing . | . . . . . Piercing . | . . . . . Highest Corruption . | . . . . . Average Corruption . | . . . . . Corruption Purged . | . . . . . Corruption Blocked . | . . . . . Overload Shots . | . . . . . Overflow Damage 3 | . . 3 . . Projectiles . | . . . . . Explosions 3 | . . 3 . . Melee . | . . . . . Knockbacks . | . . . . . Impact . | . . . . . Kinetic . | . . . . . Secondary . | . . . . . Self-Inflicted Damage 49 | . . 49 . . Shots 1 | . . 1 . . Rammed 2 | . 2 . . . Targets Rammed 2 | . 2 . . . Kicked . | . . . . . Crushed . | . . . . . Highest Temperature 153 | 18 72 . . 153 Average Temperature 29 | 9 25 . . 52 Received Heat Transfer 252 | . 195 15 . 42 Siege Activations . | . . . . . Robots Corrupted . | . . . . . Combat Hostiles . | . . . . . Parts Fried . | . . . . . Impact Corruptions . | . . . . . Robots Melted . | . . . . . Combat Hostiles . | . . . . . Parts Melted 6 | . 5 . . 1 Heat Transferred 2775 | 111 1665 . . 999 Parts Sabotaged . | . . . . . Parts Stolen . | . . . . . Parts Stripped . | . . . . . Power Chain Reactions . | . . . . . Missiles Intercepted . | . . . . . Alert | -11 -10 -10 -10 -9 ------- Run | Scr Mat Min Exi Min Peak Influence 220 | 10 220 147 . 60 Initial 27 | . 6 27 . . Average 79 | 4 93 61 . 54 Maximum Alert Level 1 | . 1 . . . Low Security (%) 88 | 100 82 100 . 100 Level 1 11 | . 17 . . . Level 2 . | . . . . . Level 3 . | . . . . . Level 4 . | . . . . . Level 5 . | . . . . . High Security . | . . . . . Max Security . | . . . . . Squads Dispatched 2 | . 1 1 . . Investigation . | . . . . . Extermination . | . . . . . Reinforcement 1 | . 1 . . . Assault 1 | . . 1 . . Garrison . | . . . . . Intercept . | . . . . . Searches Triggered . | . . . . . Construction Impeded . | . . . . . Haulers Reinforced . | . . . . . Active Scanning Responses . | . . . . . Cargo Convoy Interrupts . | . . . . . Stealth | -11 -10 -10 -10 -9 --------- Run | Scr Mat Min Exi Min Distress Signals 2 | . 2 . . . Communications Jammed . | . . . . . Distress Signals . | . . . . . Times Spotted 33 | . 16 13 . 4 Peak Tracking Total 5 | . 5 5 . 3 Tactical Retreats 1 | . 1 . . . Traps | -11 -10 -10 -10 -9 ------- Run | Scr Mat Min Exi Min Traps Triggered . | . . . . . Indirectly . | . . . . . Trap Hack Attempts . | . . . . . Triggered . | . . . . . Disarmed . | . . . . . Reprogrammed . | . . . . . Reused . | . . . . . Traps Extracted . | . . . . . Installed . | . . . . . Triggered . | . . . . . Machines | -11 -10 -10 -10 -9 ---------- Run | Scr Mat Min Exi Min Machines Disabled . | . . . . . Max in Single Turn . | . . . . . Machines Sabotaged . | . . . . . Garrisons Compromised . | . . . . . Overloaded Fab Kills . | . . . . . Hacking | -11 -10 -10 -10 -9 --------- Run | Scr Mat Min Exi Min Machines Accessed 10 | . 9 . 1 . Terminals 7 | . 7 . . . Fabricators . | . . . . . Repair Stations 1 | . 1 . . . Recycling Units 1 | . 1 . . . Scanalyzers . | . . . . . Garrison Access . | . . . . . Total Hacks 26 | . 25 . 1 . Successful 14 | . 13 . 1 . Failed 12 | . 12 . . . Catastrophic . | . . . . . Database Lockouts . | . . . . . Manual 23 | . 22 . 1 . Terminals 22 | . 22 . . . Fabricators . | . . . . . Repair Stations 1 | . 1 . . . Recycling Units 2 | . 2 . . . Scanalyzers . | . . . . . Garrison Access . | . . . . . Terminal Hacks 6 | . 5 . 1 . Robot Analysis 3 | . 3 . . . Terminal Index 1 | . 1 . . . Locate Traps 1 | . 1 . . . EX-Prototype ID Bank 1 | . . . 1 . Fabricator Hacks . | . . . . . Repair Station Hacks . | . . . . . Recycling Unit Hacks . | . . . . . Scanalyzer . | . . . . . Garrison Access Hacks . | . . . . . Unauthorized Hacks 8 | . 8 . . . Terminals 5 | . 5 . . . Track 1 | . 1 . . . Assimilate 1 | . 1 . . . Botnet 2 | . 2 . . . Operators 1 | . 1 . . . Fabricators . | . . . . . Repair Stations 1 | . 1 . . . Mechanics 1 | . 1 . . . Recycling Units 2 | . 2 . . . Reject 1 | . 1 . . . Recyclers 1 | . 1 . . . Scanalyzers . | . . . . . Garrison Access . | . . . . . Data Cores Recovered . | . . . . . Used . | . . . . . Hacking Detections 8 | . 8 . . . Full Trace Events . | . . . . . Feedback Events . | . . . . . Feedback Blocked . | . . . . . Robot Schematics Acquired . | . . . . . Robots Built . | . . . . . Authchips . | . . . . . Time . | . . . . . Total Robot Build Rating . | . . . . . Part Schematics Acquired . | . . . . . Parts Built . | . . . . . Authchips . | . . . . . Time . | . . . . . Total Part Build Rating . | . . . . . Parts Repaired . | . . . . . Time . | . . . . . Parts Recycled . | . . . . . Recycled Matter . | . . . . . Retrieved Matter . | . . . . . Retrieved Components . | . . . . . Parts Scanalyzed . | . . . . . Part Schematics Acquired . | . . . . . Parts Damaged . | . . . . . Bothacking | -11 -10 -10 -10 -9 ------------ Run | Scr Mat Min Exi Min Used RIF Installer . | . . . . . Robots Hacked . | . . . . . Non-combat . | . . . . . Combat . | . . . . . Robot Hacks Applied . | . . . . . Relay Couplers Released . | . . . . . Fabnet Peak Effective % . | . . . . . Robots Rewired . | . . . . . Allies Hacked . | . . . . . Hacks Repelled . | . . . . . Allies | -11 -10 -10 -10 -9 -------- Run | Scr Mat Min Exi Min Total Allies 2 | . 1 1 . . Largest Group 2 | . 1 2 . . Highest-Rated Group 41 | . 10 41 . . Highest-Rated Ally 31 | . 10 31 . . Total Orders . | . . . . . Ally Attacks 8 | . . 8 . . Total Damage 84 | . . 84 . . Kills 3 | . . 3 . . Allies Corrupted . | . . . . . Allies Melted . | . . . . . Intel | -11 -10 -10 -10 -9 ------- Run | Scr Mat Min Exi Min Robot Analysis Total 3 | . 3 . . . Derelict Logs Recovered 1 | . . . . 1 Drone Launches . | . . . . . Drone Recoveries . | . . . . . Exploration | -11 -10 -10 -10 -9 ------------- Run | Scr Mat Min Exi Min Turns Passed 1842 | 77 997 64 423 281 Spaces Moved 968 | 42 491 32 262 141 Core 17 | 17 . . . . Treads 951 | 25 491 32 262 141 Legs . | . . . . . Wheels . | . . . . . Hover . | . . . . . Flight . | . . . . . Fastest Speed 50 | 50 160 160 160 160 Average Speed 158 | 115 160 160 160 160 Slowest Speed 160 | 160 160 160 160 160 Overloaded Moves . | . . . . . Propulsion Burnouts . | . . . . . Robots Hopped . | . . . . . Cave-ins Triggered . | . . . . . Exploration Rate (%) 42 | 3 92 16 65 35 Regions Visited 4 Branch Regions 3 Pre-discovered Areas . | . . . . . Known Exits Taken . | . . . . . Unknown Exits Taken 4 | 1 1 1 1 . Scrap Searched . | . . . . . Spaces Dug 6 | . 6 . . . Terrain Destroyed 52 | . 6 46 . . Melee . | . . . . . Projectile 6 | . 6 . . . AOE 46 | . . 46 . . Terrain Rammed . | . . . . . Walls Destroyed . | . . . . . Machines Disabled . | . . . . . Actions | -11 -10 -10 -10 -9 --------- Run | Scr Mat Min Exi Min Total 1120 | 59 590 40 266 165 Wait 7 | . 5 1 . 1 Move 964 | 41 490 31 261 141 Hop . | . . . . . Pick Up 20 | 7 10 . 2 1 Fast Attach 7 | 3 2 . . 2 Attach 9 | 3 2 1 3 . Detach 3 | . 1 1 . 1 Swap 21 | . 18 1 . 2 Drop 10 | . 9 . . 1 Fire 77 | 5 51 5 . 16 Melee . | . . . . . Ram . | . . . . . Kick . | . . . . . Crush 2 | . 2 . . . Escape Stasis . | . . . . . Rewire . | . . . . . Trap . | . . . . . Miscellaneous . | . . . . . Route ------- -11/Scrapyard -10/Materials (discovered 4 exits: [*Mat x3] / [*Min]) -10/Mines -10/Exiles -9/Mines History --------- Turn | Location | Event 10 | -11/Scrapyard | Discovered new exit (range 15) 78 | -11/Scrapyard | Entered Materials 304 | -10/Materials | Build established: Mutant 383 | -10/Materials | Discovered new exit (range 4) 491 | -10/Materials | Discovered new exit (range 16) 541 | -10/Materials | Discovered new exit (range 15) 990 | -10/Materials | Discovered new exit (range 11) 1075 | -10/Materials | Entered Mines 1075 | -10/Mines | Accompanied by 1 ally 1076 | -10/Mines | Met a Derelict testing a Signal Generator 1097 | -10/Mines | Assembled infested the area 1130 | -10/Mines | Discovered new exit (range 6) 1131 | -10/Mines | Core integrity fell below 50% 1139 | -10/Mines | Entered Exiles 1166 | -10/Exiles | Lost 5 parts (1p2n1u1w) 1181 | -10/Exiles | Met 8R-AWN 1208 | -10/Exiles | Met EX-HEX 1318 | -10/Exiles | Met EX-BIN 1335 | -10/Exiles | Aligned with FarCom system 1337 | -10/Exiles | Given EX-Vault access code 1374 | -10/Exiles | Opened EX-Vault 1383 | -10/Exiles | Found Supersonic Drone Bay 1418 | -10/Exiles | Warned to stay clear of 0b10 Research branches 1464 | -10/Exiles | Met EX-DEC 1549 | -10/Exiles | Discovered new exit (range 10) 1562 | -10/Exiles | Left Exiles lab with Supersonic Drone Bay 1562 | -10/Exiles | Entered Mines 1841 | -9/Mines | Core integrity fell below 20% 1843 | -9/Mines | Destroyed by L-31 Rogue with Katana Last Messages --------------- LOCATION=UNKNOWN GOAL=ESCAPE 01562_ Receiving FarCom transmissions... 01562_ G-34 Mercenary destroyed. 01565_ B-36 Bruiser suffers critical hit (Burn). 01576_ B-36 Bruiser overheating. 01577_ Lgt. Treads melted. 01577_ B-36 Bruiser destroyed. 01582_ Acquired Heat Sink. 01585_ Acquired 34 matter. 01617_ Acquired derelict log, extracted data. Data stored: Storage entrances (x1). 01622_ T-07 Excavator destroyed. 01632_ Acquired Lgt. Ion Engine. 01690_ T-07 Excavator is excavating. 01715_ T-07 Excavator destroyed. 01720_ Acquired Imp. Terrain Scanner. 01721_ Dropped Heat Sink. 01790_ Destroyed Welding Torch. 01836_ L-31 Rogue suffers critical hit (Burn). Map ----- +----------------------------------------------------+ | # #??????????????????????????????????????????? | | #??????????????????????????????????????????? | | # ####??????#?????????????????????????????????? | | #############????????????????????????????? | | #????#???????????????????????? | | ### ########### #???#????????????????????????? | | ##?# #?????????# #######??????????????????????? | | ###??# #?????????# %%#??????????????????????? | | #????# #????????## %/%#??????????????????????? | | #????# #?????????#""" % #??????????????????????? | | ###?## #????????##""" #?#????????????????????? | | #???#!%#??????#??#""" #??? ??????????????????? | | #???# ##????????# #??#???????????????????? | | ##???# ###################??????????????????????? | | #????# #?????###??????????????????? | | ???#?# ############# #????# ##????#????????????? | | ?#???# #???????????# #???# ##?? #????????????? | | ?????# #????#??#??## #?## ## #????????????? | | ?????# #???????????# ### gg #????????????? | | ?????# #????????#??# #????????????? | | ?##?## #???????????##### #????????????? | | ?????# #??????????????## ##????????????? | | ???### ####??????#????# #####?????????????? | | ?### ##???????????# ##?????????????????? | | ### #???????#??## l ##??????????????????? | | ##??##??????##@ ##???????????????????? | | # ###??#????#?#u ##????????????????????? | | ###### ##?#??#???# #??????#??????????????? | | ?#???## #?#??????# #?????????????????????? | | ??????## #???#???? #?????????????????????? | | #??????### ##???????####????#????????????????? | | ########### ##???????????????????????????????? | | #???????????????????????????????? | | ######### #???????????????????????????????? | | ###??#???# #???????????????????????????????? | | #????????## #??????????????????????????????? | | ??????????### #??????????????????????????????? | | ?????#??#????# ##??????????????????????????????? | | ?#???????????#####???????????????????????????????? | | ??????##?????????????????????????????????????????? | | ?????????????????????????????????????????????????? | | ??????????##???#?????????????????????????????????? | | ???????#??#??????????????????????????????????????? | | ?????????????????????????????????????????????????? | | ????????????#????????????????????????????????????? | | ??????????#??????????????????????????????????????? | | ?????##??????????????????????????????????????????? | | ?????????????????????????????????????????????????? | | ??#??????????????????????????????????????????????? | | ?????????????????????????????????????????????????? | +----------------------------------------------------+ Best States ------------- Heat Dissipation 39 Energy Generation 10 Energy Capacity 250 Matter Stores 300 Matter Capacity 300 Sight Range 16 Terrain Scan Range 16 Terrain Scan Density 10 Evasion (%) 50 Recoil Reduction 2 Item Schematics ----------------- None Robot Schematics ------------------ None Fabricated ------------ Nothing Alien Tech Used ----------------- None Achievements -------------- None Challenges ------------ None Game ------ Seed LegFusionChronowheel Manual? 0 Play Time 00:17:23 Cumulative 568.0 hours Start 2022.04.03 @ 23:38:24 End 2022.04.03 @ 23:54:10 Sessions 1 Manual Loads 0 Difficulty Rogue Special Mode None Game No. 276 Rogue 149 Adventurer 125 Explorer 2 Win Type - Total 51 Types 44/3/2/0/1/0/0/0/1 Lore% 71 Gallery% 85 Achievement% 68 Wizard Run 0 Options --------- ASCII 0 Keyboard 1 Movement Numpad Keybinds 0 Fullscreen 1 Font 36/TerminusFine Map View 76x50 Tactical HUD 1 Map Filters NONE Filters NONE Steam 1 RUN: 13bb861a-1cbb-444e-be02-d9d2a0f3bfc1